bitfinex/quotes_ETHUSD_20250803
["timestamp","ask_amount","ask_price","bid_price","bid_amount"]
[1754221767306,0.001,3502.3,3502.2,4.503436]
[1754221771130,0.001,3502.3,3502.2,4.504436]
[1754221772440,0.001,3502.3,3502.2,5.51467142]
[1754221772589,0.001,3502.3,3502.2,5.5052796]
[1754221773440,0.001,3502.3,3502.2,0.664436]
[1754221773580,0.001,3502.3,3502.2,5.054436]
[1754221776100,0.001,3502.3,3502.2,5.196836]
[1754221784939,0.001,3502.3,3502.2,5.194836]
[1754221810164,0.001,3502.3,3502.2,0.806836]
[1754221810370,0.001,3502.3,3502.2,5.57485881]
[1754221810881,0.001,3502.3,3502.2,1.18885881]
[1754221811081,0.001,3502.3,3502.2,0.114436]
[1754221811474,0.001,3502.3,3502.2,4.499436]
[1754221811670,0.001,3502.3,3502.1,0.002]
[1754221812314,0.001,3502.3,3502.1,4.387]
[1754221812862,0.001,3502.3,3502.1,0.002]
[1754221814971,0.19775051,3502.3,3502.1,0.002]
[1754221816493,0.001,3502.3,3502.1,0.002]
[1754221817570,0.14752352,3502.3,3502.1,0.002]
[1754221817793,0.001,3502.3,3502.1,0.002]
[1754221831635,0.03669083,3502.3,3502.1,0.002]
[1754221832573,0.001,3502.3,3502.1,0.002]
[1754221832742,1.717,3502.2,3502.1,0.002]
[1754221834811,0.001,3502.3,3502.1,0.002]
[1754221837459,36.0482393,3502.2,3502.1,0.002]
[1754221837654,1.717,3502.0,3501.5,0.002]
[1754221837834,4.717,3501.6,3501.5,0.002]
[1754221838038,34.717,3501.6,3501.5,0.002]
[1754221838258,4.717,3501.6,3501.5,0.002]
[1754221842159,4.385,3501.9,3501.5,0.002]
[1754221842558,3.0,3501.8,3501.5,0.002]
[1754221845355,0.03569694,3501.7,3501.5,0.002]
[1754221846569,3.0,3501.8,3501.5,0.002]
[1754221846867,7.385,3501.8,3501.5,0.002]
[1754221851236,0.03569694,3501.7,3501.5,0.002]
[1754221852041,1.717,3501.6,3501.5,0.002]
[1754221852242,34.717,3501.6,3501.5,0.002]
[1754221852470,39.102,3501.6,3501.5,0.002]
[1754221853064,39.48184647,3501.6,3501.5,0.002]
[1754221853261,40.03184647,3501.6,3501.5,0.002]
[1754221854172,39.652,3501.6,3501.5,0.002]
[1754221854743,39.9384,3501.6,3501.5,0.002]
[1754221861891,47.46824647,3501.6,3501.5,0.002]
[1754221862797,47.56824647,3501.6,3501.5,0.002]
[1754221862966,51.31284647,3501.6,3501.5,0.002]
[1754221863364,54.1686838,3501.6,3501.5,0.002]
[1754221863711,51.31284647,3501.6,3501.5,0.002]
[1754221864878,35.6644,3501.2,3501.1,0.002]
[1754221865077,43.76145364,3501.2,3501.1,0.002]
[1754221865386,44.16284647,3501.2,3501.1,0.002]
[1754221866290,35.6644,3500.4,3500.3,0.002]
[1754221866494,50.29924647,3500.4,3500.3,0.002]
[1754221866696,50.7006393,3500.4,3500.3,0.002]
[1754221867367,45.5344,3500.4,3500.3,0.002]
[1754221867569,46.8084,3500.4,3500.3,0.002]
[1754221867775,42.19139927,3500.4,3500.3,0.002]
[1754221868100,46.57639927,3500.4,3500.3,0.002]
[1754221868272,47.12639927,3500.4,3500.3,0.002]
[1754221868593,46.83999927,3500.4,3500.3,0.002]
[1754221870405,47.21984574,3500.4,3500.3,0.002]
[1754221872605,37.08799927,3500.4,3500.3,0.002]
[1754221872760,34.60399927,3500.4,3500.3,0.002]
[1754221872964,37.60399927,3500.4,3500.3,0.002]
[1754221873187,34.60399927,3500.4,3500.3,0.002]
[1754221873574,30.0,3501.2,3500.3,0.002]
[1754221873778,30.0,3501.0,3500.3,0.002]
[1754221873993,3.0,3500.7,3500.3,0.002]
[1754221874214,3.0,3500.5,3500.3,0.002]
[1754221875105,0.0357102,3500.4,3500.3,0.002]
[1754221875419,37.4217102,3500.4,3500.3,0.002]
[1754221875625,37.386,3500.4,3500.3,0.002]
[1754221876182,3.0,3500.4,3500.3,0.002]
[1754221876407,7.386,3500.4,3500.3,0.002]
[1754221877121,10.0,3501.2,3500.3,0.002]
[1754221877324,40.0,3501.0,3500.3,0.002]
[1754221877527,4.386,3500.9,3500.3,0.002]
[1754221877911,3.0,3500.8,3500.3,0.002]
[1754221878934,3.0,3501.2,3500.3,0.002]
[1754221879138,4.385,3501.1,3500.3,0.002]
[1754221879290,4.385,3501.2,3500.3,0.002]
[1754221880601,10.0,3501.7,3500.3,0.002]
[1754221880824,30.0,3501.5,3500.3,0.002]
[1754221880999,7.385,3501.4,3500.3,0.002]
[1754221881199,3.0,3501.7,3500.3,0.002]
[1754221881431,4.385,3501.6,3500.3,0.002]
[1754221882018,4.385,3501.6,3500.3,0.1452]
[1754221882923,0.03569898,3501.5,3500.3,0.1452]
[1754221883637,4.385,3501.6,3500.3,0.1452]
[1754221883827,4.386,3501.9,3500.3,0.1452]
[1754221884014,3.4387,3501.8,3500.3,0.1452]
[1754221884743,0.4387,3501.8,3500.3,0.1452]
[1754221884907,0.001,3502.1,3500.7,0.55]
[1754221886335,0.001,3502.1,3500.4,0.55]
[1754221886504,0.001,3502.1,3500.5,0.55]
[1754221887158,0.001,3502.1,3500.9,0.55]
[1754221889440,0.001,3502.1,3501.1,0.55]
[1754221890827,0.001,3502.1,3501.1,0.664501]
[1754221894940,0.03669286,3502.1,3501.1,0.114501]
[1754221895242,0.03669286,3502.1,3500.4,0.1432]
[1754221895543,0.03669286,3502.1,3500.6,0.114521]
[1754221895911,3.0,3501.9,3500.6,0.114521]
[1754221896106,0.03569592,3501.8,3500.5,0.55]
[1754221896311,3.0,3501.9,3500.5,0.55]
[1754221896549,0.001,3502.1,3500.5,0.55]
[1754221896723,3.0,3501.7,3500.6,0.1554108]
[1754221897040,0.03569694,3501.7,3500.3,0.002]
[1754221897811,3.03569694,3501.7,3500.3,0.002]
[1754221898409,3.0,3501.7,3500.3,0.002]
[1754221902344,3.03569694,3501.7,3500.3,0.002]
[1754221902746,3.0,3501.5,3500.3,0.002]
[1754221902948,0.0357,3501.4,3500.3,0.002]
[1754221903147,30.0,3501.6,3500.3,0.002]
[1754221903451,4.717,3501.9,3500.3,0.002]
[1754221903647,40.0,3501.6,3500.3,0.002]
[1754221903853,3.0,3501.3,3500.3,0.002]
[1754221904151,40.0,3501.6,3500.3,0.002]
[1754221904444,1.717,3501.9,3500.3,0.002]
[1754221904445,4.717,3501.9,3500.3,0.002]
[1754221904649,3.0,3501.6,3500.3,0.002]
[1754221904822,3.0,3501.7,3500.3,0.002]
[1754221905221,4.717,3501.9,3500.3,0.002]
[1754221905555,3.0,3501.7,3500.3,0.002]
[1754221905849,4.6693,3502.0,3500.3,0.002]
[1754221905850,0.2863,3502.0,3500.3,0.002]
[1754221906051,4.384,3502.5,3500.4,0.00941613]
[1754221906232,4.384,3502.5,3501.1,0.55]
[1754221906431,3.0,3502.4,3501.1,0.55]
[1754221906736,0.001,3501.9,3501.1,1.05762]
[1754221911017,0.001,3501.9,3501.0,0.1432]
[1754221911537,0.001,3501.9,3500.6,0.6932]
[1754221911738,0.0366949,3501.9,3500.6,0.6932]
[1754221911980,0.001,3501.9,3500.6,0.6932]
[1754221913876,0.001,3501.9,3501.0,0.55]
[1754221915377,0.001,3501.9,3501.0,0.664504]
[1754221917374,0.001,3501.9,3500.9,0.1432]
[1754221917538,0.001,3501.9,3500.8,0.114515]
[1754221917980,0.001,3501.9,3500.4,4.383]
[1754221918144,0.001,3501.9,3500.5,0.4385]
[1754221918581,40.0,3501.6,3500.3,0.002]
[1754221918738,0.03569898,3501.5,3500.3,0.002]
[1754221918943,3.0,3501.4,3500.3,0.002]
[1754221919150,1.717,3501.6,3500.3,0.002]
[1754221919478,0.1717,3501.5,3500.3,0.002]
[1754221919679,30.0,3501.8,3500.3,0.002]
[1754221919886,0.001,3501.9,3500.3,0.002]
[1754221920042,3.0,3501.7,3500.3,0.002]
[1754221920249,3.0,3501.6,3500.3,0.002]
[1754221920786,3.03569796,3501.6,3500.3,0.002]
[1754221920997,0.03569796,3501.6,3500.3,0.002]
[1754221921863,3.0,3501.6,3500.3,0.002]
[1754221922057,0.03569898,3501.5,3500.3,0.002]
[1754221922776,30.0,3501.6,3500.3,0.002]
[1754221922971,0.001,3501.9,3500.3,0.002]
[1754221923171,30.0,3501.8,3500.3,0.002]
[1754221923375,40.0,3501.6,3500.3,0.002]
[1754221923693,30.0,3501.6,3500.3,0.002]
[1754221927018,4.384,3501.9,3500.3,0.002]
[1754221927184,3.0,3501.8,3500.3,0.002]
[1754221927924,3.0,3501.8,3500.4,0.55]
[1754221928077,0.03569694,3501.7,3500.4,0.55]
[1754221928473,3.0,3501.8,3500.4,0.55]
[1754221929876,3.03569592,3501.8,3500.3,0.1452]
[1754221930081,40.0,3501.7,3500.3,0.002]
[1754221930286,0.03569796,3501.6,3500.3,0.002]
[1754221931012,30.0,3501.7,3500.3,0.002]
[1754221931507,1.717,3501.6,3500.3,0.01141906]
[1754221931684,4.384,3501.9,3500.4,0.73944191]
[1754221931884,4.384,3501.9,3500.5,0.55]
[1754221931885,0.001,3501.9,3500.5,0.55]
[1754221932085,0.001,3501.9,3500.7,0.55]
[1754221936090,0.001,3501.9,3501.0,0.55]
[1754221940025,0.001,3501.9,3500.5,0.55]
[1754221940224,0.001,3501.9,3501.5,0.55]
[1754221940794,0.001,3501.9,3501.4,0.55]
[1754221940994,0.001,3501.9,3501.7,0.55]
[1754221942299,0.001,3501.9,3501.6,0.1424]
[1754221942631,0.001,3501.9,3500.6,0.57234419]
[1754221942797,0.001,3501.9,3500.6,0.1432]
[1754221942993,0.001,3501.9,3500.7,0.55]
[1754221943439,0.001,3501.9,3500.6,0.1432]
[1754221944301,0.001,3501.9,3500.7,0.55]
[1754221948033,0.001,3501.9,3500.6,3.1452]
[1754221948197,0.001,3501.9,3500.6,3.002]
[1754221952028,0.001,3501.9,3500.6,0.002]
[1754221952029,0.0366949,3501.9,3500.6,0.002]
[1754221954645,0.001,3501.9,3500.6,0.002]
[1754221954810,0.001,3501.9,3500.6,0.45492]
[1754221955749,0.0366949,3501.9,3500.6,0.002]
[1754221956457,30.0,3501.8,3500.6,0.002]
[1754221956752,0.03569694,3501.7,3500.6,0.002]
[1754221957666,0.03569796,3501.6,3500.6,0.002]
[1754221958655,0.03569898,3501.5,3500.6,0.002]
[1754221959646,0.0366949,3501.9,3500.6,0.002]
[1754221959846,3.0,3501.7,3500.6,0.002]
[1754221960038,0.03569796,3501.6,3500.6,0.002]
[1754221961152,0.0366949,3501.9,3500.6,0.002]
[1754221961349,3.0,3501.7,3500.6,0.002]
[1754221961520,1.75269796,3501.6,3500.6,0.002]
[1754221961716,0.1752698,3501.5,3500.6,0.002]
[1754221962647,0.03569796,3501.6,3500.6,0.002]
[1754221963614,30.0,3501.8,3500.6,0.002]
[1754221963950,1.75269694,3501.7,3500.6,0.002]
[1754221964149,1.717,3501.7,3500.6,0.002]
[1754221964448,0.001,3501.9,3500.6,0.002]
[1754221964613,0.001,3501.9,3500.6,0.01141382]
[1754221964820,0.1719,3501.8,3500.6,0.01141382]
[1754221965016,0.001,3501.9,3500.6,0.01141382]
[1754221965213,0.001,3501.9,3500.6,0.002]
[1754221966619,0.001,3501.9,3500.6,0.552]
[1754221972262,0.001,3501.9,3500.6,4.384]
[1754221974041,0.0366949,3501.9,3500.6,4.384]
[1754221974575,40.0,3501.6,3500.6,4.384]
[1754221974760,30.0,3501.6,3500.6,4.384]
[1754221975130,0.001,3501.9,3500.6,4.384]
[1754221976463,0.001,3501.9,3500.7,0.55]
[1754221983033,0.001,3501.9,3500.7,0.664515]
[1754221984053,0.001,3501.9,3500.8,4.381]
[1754221986445,0.001,3501.9,3500.9,0.114519]
[1754221986854,0.001,3501.9,3500.8,4.381]
[1754221987055,0.001,3501.9,3501.0,0.114519]
[1754221987675,0.001,3501.9,3500.8,4.381]
[1754221988259,0.001,3501.9,3501.1,0.114519]
[1754222005586,0.001,3501.9,3500.6,0.002]
[1754222005767,0.03569592,3501.8,3500.6,0.002]
[1754222005963,0.03569592,3501.8,3500.6,0.116536]
[1754222006675,0.03569694,3501.7,3500.6,0.116536]
[1754222007387,0.001,3501.9,3500.6,0.116536]
[1754222007956,1.717,3501.8,3500.6,0.116536]
[1754222008289,0.03569694,3501.7,3500.6,0.116536]
[1754222008877,0.03569694,3501.7,3500.7,0.002]
[1754222013679,1.717,3501.6,3500.7,0.002]
[1754222014806,0.03569898,3501.5,3500.7,0.002]
[1754222016004,0.0357,3501.4,3500.7,0.002]
[1754222016201,3.0,3501.4,3500.7,0.002]
[1754222016405,0.03570102,3501.3,3500.7,0.002]
[1754222016778,3.0,3501.1,3500.7,0.002]
[1754222017080,0.03570408,3501.0,3500.7,0.002]
[1754222017286,30.0,3501.2,3500.7,0.002]
[1754222017482,0.03570306,3501.1,3500.7,0.002]
[1754222017682,0.21097337,3501.1,3500.7,0.002]
[1754222017907,0.17527031,3501.1,3500.7,0.002]
[1754222019672,4.717,3501.3,3500.7,0.002]
[1754222019876,3.0,3501.1,3500.7,0.002]
[1754222020501,30.0,3501.2,3500.7,0.002]
[1754222020703,1.717,3501.3,3500.7,0.002]
[1754222020891,1.93532011,3501.3,3500.7,0.002]
[1754222021087,0.49353201,3501.2,3500.7,0.002]
[1754222021315,3.0,3501.1,3500.7,0.002]
[1754222022509,30.0,3501.2,3500.7,0.002]
[1754222022674,1.93532011,3501.3,3500.7,0.002]
[1754222023114,3.0,3501.1,3500.7,0.002]
[1754222024012,0.001,3501.9,3500.7,0.01141974]
[1754222024230,0.001,3501.9,3500.8,4.379]
[1754222024402,0.001,3501.9,3500.9,0.4501536]
[1754222025320,0.001,3501.9,3501.0,0.00941009]
[1754222025630,0.001,3501.9,3501.3,0.1432]
[1754222026128,0.001,3501.9,3501.4,0.00940682]
[1754222026329,0.001,3501.9,3501.3,0.1432]
[1754222026627,0.001,3501.9,3501.0,4.379]
[1754222026834,0.001,3501.9,3501.1,0.48291536]
[1754222027199,0.001,3501.9,3500.9,4.378]
[1754222028111,0.001,3501.9,3501.0,0.00941009]
[1754222028512,0.001,3501.9,3501.0,0.55]
[1754222030414,0.001,3501.9,3501.1,0.114503]
[1754222034338,0.001,3501.9,3501.2,0.55940778]
[1754222034512,0.001,3501.9,3501.3,0.42239108]
[1754222035039,0.001,3501.9,3501.4,0.114496]
[1754222041938,0.001,3501.9,3500.9,0.002]
[1754222041939,30.0,3501.8,3500.9,0.002]
[1754222042141,0.03569694,3501.7,3500.9,0.002]
[1754222042435,0.03569694,3501.7,3501.0,0.114529]
[1754222042436,30.0,3501.6,3501.0,0.114529]
[1754222042637,0.001,3501.9,3500.9,0.002]
[1754222042882,3.0,3501.7,3500.9,0.002]
[1754222043046,0.03569796,3501.6,3500.9,0.002]
[1754222044140,0.03569898,3501.5,3500.9,0.002]
[1754222045247,0.03569694,3501.7,3500.9,0.002]
[1754222045410,0.30366969,3501.6,3500.9,0.002]
[1754222045615,0.001,3501.9,3500.9,0.002]
[1754222052655,0.001,3501.9,3501.0,0.00941009]
[1754222053562,0.001,3501.9,3501.3,0.1432]
[1754222053724,0.001,3501.9,3501.4,0.55]
[1754222055760,0.001,3501.9,3501.5,0.114488]
[1754222057364,0.001,3501.9,3500.9,0.002]
[1754222057893,0.001,3501.9,3501.6,0.114495]
[1754222058480,0.001,3501.9,3500.9,4.377]
[1754222058683,0.001,3501.9,3501.3,0.114505]
[1754222058831,0.001,3501.9,3501.4,0.00940548]
[1754222059034,0.001,3501.9,3501.3,0.114505]
[1754222063297,0.001,3501.9,3501.3,0.104505]
[1754222069501,0.001,3501.9,3501.3,0.5524555]
[1754222072369,0.001,3501.9,3501.3,0.104505]
[1754222072571,0.001,3501.9,3500.9,0.002]
[1754222072794,0.001,3501.9,3500.9,0.116522]
[1754222073806,0.9305,3501.8,3501.0,0.4946]
[1754222073970,0.001,3501.9,3501.0,0.4946]
[1754222073971,0.9305,3501.7,3501.0,0.4946]
[1754222074166,0.9305,3501.6,3501.0,0.4946]
[1754222074375,0.9305,3501.6,3500.9,0.116522]
[1754222074376,0.4621,3501.5,3500.9,0.116522]
[1754222074692,0.21801,3501.4,3500.9,0.002]
[1754222075108,0.9305,3501.3,3500.9,0.002]
[1754222075476,0.9305,3501.2,3500.9,0.002]
[1754222075687,0.03570306,3501.1,3500.9,0.002]
[1754222076011,0.9305,3501.1,3500.9,0.002]
[1754222076519,0.9305,3501.0,3500.9,0.002]
[1754222076716,0.4753698,3501.5,3500.9,0.002]
[1754222076919,0.03569796,3501.6,3500.9,0.002]
[1754222076920,0.9305,3501.0,3500.9,0.002]
[1754222083321,0.4621,3501.4,3500.9,0.002]
[1754222083618,0.4684,3501.4,3500.9,0.002]
[1754222083825,0.4621,3501.3,3500.9,0.002]
[1754222084391,0.4684,3501.2,3500.9,0.002]
[1754222084898,0.4621,3501.3,3500.9,0.4966]
[1754222086722,0.001,3501.9,3501.0,0.4821]
[1754222086928,0.4523,3501.5,3501.0,0.4821]
[1754222087124,0.8978,3501.4,3501.0,0.4821]
[1754222087425,0.001,3501.9,3500.9,0.002]
[1754222087594,0.8978,3501.8,3500.9,0.9243]
[1754222087790,0.001,3501.9,3501.0,0.9223]
[1754222088018,0.001,3501.9,3501.0,1.781125]
[1754222088019,0.4533,3501.9,3501.0,1.781125]
[1754222088191,0.4533,3501.9,3501.1,1.1006125]
[1754222088401,0.4533,3501.9,3501.2,0.9223]
[1754222088625,0.4533,3501.9,3501.2,1.3756]
[1754222088824,0.4455,3501.8,3501.2,1.3756]
[1754222089010,0.4523,3501.7,3501.2,0.9354]
[1754222089219,0.001,3501.9,3500.9,0.002]
[1754222089220,0.93349796,3501.6,3500.9,0.002]
[1754222089422,0.4523,3501.5,3500.9,0.002]
[1754222089627,0.8978,3501.5,3500.9,0.002]
[1754222090019,0.0366949,3501.9,3500.9,0.002]
[1754222090020,0.8978,3501.4,3500.9,0.002]
[1754222090237,0.8978,3501.3,3500.9,0.002]
[1754222090526,0.8978,3501.2,3500.9,0.002]
[1754222090927,0.4523,3501.1,3500.9,0.002]
[1754222091115,0.4523,3501.0,3500.9,0.002]
[1754222092827,0.001,3501.9,3500.9,0.002]
[1754222093019,0.4523,3501.3,3500.9,0.002]
[1754222093193,0.4523,3501.3,3500.9,0.4841]
[1754222093395,0.4523,3501.3,3500.9,0.9243]
[1754222094220,0.4523,3501.3,3500.9,0.4841]
[1754222095629,0.8978,3501.3,3500.9,0.4841]
[1754222095833,0.8978,3501.2,3500.9,0.002]
[1754222096022,0.8978,3501.1,3500.9,0.002]
[1754222096223,0.0366949,3501.9,3500.9,0.002]
[1754222096399,0.8978,3501.0,3500.9,0.002]
[1754222103651,1.28758,3501.0,3500.9,0.002]
[1754222103863,33.8978,3501.0,3500.9,0.002]
[1754222110570,36.54167392,3501.0,3500.9,0.002]
[1754222110755,37.18338336,3501.0,3500.9,0.002]
[1754222110955,41.56238336,3501.0,3500.9,0.002]
[1754222111159,3.2863,3500.6,3500.5,0.002]
[1754222111358,3.2863,3500.6,3498.9,0.002]
[1754222111359,2.5543,3500.0,3498.9,0.002]
[1754222111560,38.2293,3500.0,3498.9,0.002]
[1754222111773,39.1271,3500.0,3498.9,0.002]
[1754222112448,41.20050944,3500.0,3498.9,0.002]
[1754222113179,43.8571,3500.0,3498.9,0.002]
[1754222113363,43.5708,3500.0,3498.9,0.002]
[1754222114482,36.1658,3500.0,3498.9,0.002]
[1754222114643,40.5618,3500.0,3498.9,0.4841]
[1754222115190,40.5608,3500.0,3498.9,0.4841]
[1754222116077,36.1658,3500.0,3498.9,0.4841]
[1754222116276,33.4523,3500.0,3498.9,0.002]
[1754222116600,38.2864,3500.0,3499.3,0.4559]
[1754222117076,38.2864,3500.0,3499.4,0.4539]
[1754222117752,38.2864,3500.0,3499.5,0.002]
[1754222119983,4.397,3500.0,3499.5,0.002]
[1754222120187,37.397,3500.0,3499.9,0.4559]
[1754222120388,37.397,3500.0,3499.9,0.002]
[1754222121393,39.115,3500.0,3499.9,0.002]
[1754222122502,34.718,3500.0,3499.9,0.002]
[1754222122703,39.112,3500.0,3499.9,0.002]
[1754222123906,34.718,3500.0,3499.9,0.002]
[1754222124106,37.393,3500.0,3499.9,0.4559]
[1754222124319,37.393,3500.0,3499.9,0.002]
[1754222125336,37.8823,3500.0,3499.9,0.002]
[1754222125518,38.3194,3500.0,3499.9,0.002]
[1754222126739,37.393,3500.0,3499.9,0.002]
[1754222127942,37.8823,3500.0,3499.9,0.002]
[1754222128532,38.3194,3500.0,3499.9,0.002]
[1754222129443,37.393,3500.0,3499.9,0.002]
[1754222129844,33.0,3500.0,3499.9,0.002]
[1754222130012,7.391,3500.0,3499.9,0.9162]
[1754222130723,3.0,3500.0,3499.9,0.9162]
[1754222130926,7.389,3500.0,3499.9,0.9162]
[1754222131343,9.107,3500.0,3499.9,0.9162]
[1754222131543,7.389,3500.0,3499.9,0.9162]
[1754222134044,3.0,3500.0,3499.9,0.9162]
[1754222134246,7.387,3500.0,3499.9,0.9162]
[1754222134744,3.0,3500.0,3499.9,0.9162]
[1754222134940,7.387,3500.0,3499.9,0.9162]
[1754222137257,7.385,3500.0,3499.9,0.9162]
[1754222139365,7.385,3500.0,3499.9,0.002]
[1754222141279,7.385,3500.0,3499.9,0.9162]
[1754222141280,7.383,3500.0,3499.9,0.9162]
[1754222141580,3.0,3500.0,3499.9,0.9162]
[1754222143663,3.0,3500.4,3499.9,0.9162]
[1754222143863,0.001,3500.2,3499.9,0.002]
[1754222144068,0.001,3500.2,3500.0,0.9142]
[1754222144265,0.001,3500.2,3499.9,0.002]
[1754222144433,0.001,3500.2,3500.1,0.9142]
[1754222144634,0.001,3500.2,3499.9,0.002]
[1754222144834,0.001,3500.2,3500.0,0.9142]
[1754222145030,0.001,3500.2,3500.1,0.9542]
[1754222147135,0.001,3500.2,3499.9,0.002]
[1754222147347,0.001,3500.2,3499.9,0.491]
[1754222148366,0.001,3500.2,3499.9,0.002]
[1754222148667,0.001,3500.2,3500.0,0.489]
[1754222149650,0.001,3500.2,3499.9,0.4672]
[1754222149839,0.001,3500.2,3499.9,0.9562]
[1754222150034,0.4931,3500.1,3499.9,0.002]
[1754222150240,0.4385,3500.0,3499.9,0.002]
[1754222150672,0.9316,3500.0,3499.9,0.002]
[1754222151667,3.9316,3500.0,3499.9,0.002]
[1754222158379,8.3136,3500.0,3499.9,0.002]
[1754222159381,7.382,3500.0,3499.9,0.002]
[1754222159583,3.0,3500.0,3499.9,0.9562]
[1754222159755,0.001,3500.2,3499.9,0.9562]
[1754222159958,0.001,3500.2,3500.0,0.9542]
[1754222160381,0.001,3500.2,3500.1,0.9542]
[1754222161579,0.001,3500.2,3499.9,0.002]
[1754222161883,0.001,3500.2,3500.0,0.9542]
[1754222162077,0.001,3500.2,3500.0,0.4652]
[1754222162273,0.001,3500.2,3499.9,0.002]
[1754222162491,0.4941,3500.2,3499.9,0.002]
[1754222162874,0.001,3500.2,3499.9,0.002]
[1754222163194,0.9316,3500.1,3499.9,0.002]
[1754222163394,0.03671224,3500.2,3499.9,0.002]
[1754222163395,0.4325455,3500.0,3499.9,0.002]
[1754222163690,0.96731428,3500.0,3499.9,0.002]
[1754222163904,0.9316,3500.0,3499.9,0.002]
[1754222164602,0.96731428,3500.0,3499.9,0.002]
[1754222165601,3.96731428,3500.0,3499.9,0.002]
[1754222168656,0.96731428,3500.0,3499.9,0.002]
[1754222170278,4.90881428,3500.0,3499.9,0.002]
[1754222170596,5.34731428,3500.0,3499.9,0.002]
[1754222172070,37.06531428,3500.0,3499.9,0.002]
[1754222172282,37.0296,3500.0,3499.9,0.002]
[1754222172591,40.0296,3500.0,3499.9,0.002]
[1754222185728,40.5796,3500.0,3499.9,0.002]
[1754222186894,40.5776,3500.0,3499.9,0.002]
[1754222188830,40.8639,3500.0,3499.9,0.002]
[1754222193306,39.9323,3500.0,3499.9,0.002]
[1754222194539,40.4139,3500.0,3499.9,0.002]
[1754222196056,40.8415,3500.0,3499.9,0.002]
[1754222196261,41.57278336,3500.0,3499.9,0.002]
[1754222197756,41.19690944,3500.0,3499.9,0.002]
[1754222207060,48.75248336,3500.0,3499.9,0.002]
[1754222207270,48.37660944,3500.0,3499.9,0.002]
[1754222209242,48.75248336,3500.0,3499.9,0.002]
[1754222209539,49.0847182,3500.0,3499.9,0.002]
[1754222211137,52.0967182,3500.0,3499.9,0.002]
[1754222211382,49.0847182,3500.0,3499.9,0.002]
[1754222214161,49.1029182,3500.0,3499.9,0.002]
[1754222214868,52.1149182,3500.0,3499.9,0.002]
[1754222216394,35.5543,3499.6,3499.5,0.002]
[1754222216691,40.66925002,3499.6,3499.5,0.002]
[1754222216895,47.81925002,3499.6,3499.5,0.002]
[1754222217060,48.77635002,3499.6,3499.5,0.002]
[1754222217665,51.28855002,3499.6,3499.5,0.002]
[1754222217863,51.78835002,3499.6,3499.5,0.002]
[1754222219901,52.00367016,3499.6,3499.5,0.002]
[1754222221568,51.50387016,3499.6,3499.5,0.002]
[1754222221807,52.00367016,3499.6,3499.5,0.002]
[1754222223503,52.00367016,3499.6,3499.0,0.4317]
[1754222223504,39.73069624,3499.6,3499.0,0.4317]
[1754222223686,39.73069624,3499.6,3498.9,0.002]
[1754222223687,42.0043,3499.4,3498.9,0.002]
[1754222223890,2.0043,3499.0,3498.9,0.002]
[1754222224206,39.9333,3499.0,3498.9,0.002]
[1754222226384,40.07617755,3499.0,3498.9,0.002]
[1754222227017,40.43725365,3499.0,3498.9,0.002]
[1754222227501,48.54435365,3499.0,3498.9,0.002]
[1754222227707,48.92022757,3499.0,3498.9,0.002]
[1754222228204,51.93222757,3499.0,3498.9,0.002]
[1754222230511,44.78222757,3499.0,3498.9,0.002]
[1754222232933,44.04527755,3499.0,3498.9,0.002]
[1754222233317,32.14717755,3499.0,3498.6,0.1462]
[1754222233528,32.0043,3498.8,3498.7,0.4022]
[1754222233705,0.2863,3498.4,3497.4,0.002]
[1754222233901,30.0,3498.2,3497.4,0.002]
[1754222234095,13.0,3498.0,3497.4,0.002]
[1754222234302,7.379,3497.9,3497.4,0.002]
[1754222235000,3.0,3497.9,3497.8,0.4042]
[1754222235202,7.379,3497.9,3497.8,0.4042]
[1754222235549,7.379,3497.9,3497.8,0.5504]
[1754222236215,39.647,3497.9,3497.8,0.5504]
[1754222236546,37.379,3497.9,3497.8,0.5504]
[1754222238370,33.0,3497.9,3497.8,0.5504]
[1754222238668,37.388,3497.9,3497.8,0.5504]
[1754222240126,37.388,3497.9,3497.8,0.002]
[1754222240326,37.7490761,3497.9,3497.8,0.002]
[1754222241429,39.4670761,3497.9,3497.8,0.002]
[1754222243530,40.67945002,3497.9,3497.8,0.002]
[1754222243734,41.62605002,3497.9,3497.8,0.002]
[1754222247769,44.63805002,3497.9,3497.8,0.002]
[1754222249661,45.18645002,3497.9,3497.8,0.002]
[1754222250632,44.64105002,3497.9,3497.8,0.002]